[Event "*** Titled Tuesday 3|2 Blitz"]
[Site "Chess.com"]
[Date "2016.02.02"]
[Round "8"]
[White "vellottiwizard"]
[Black "GianmarcoVaR"]
[Result "1-0"]
[WhiteElo "2417"]
[BlackElo "2261"]
[TimeControl "180+2"]
[EndTime "18:39:28 PST"]
[Termination "vellottiwizard won by resignation"]

1. e4 {[%clk 0:03:01.9]} 1... c6 {[%clk 0:02:58.9]} 2. d4 {[%clk 0:03:00.3]}
2... d5 {[%clk 0:03:00.3]} 3. Nc3 {[%clk 0:03:01.9]} 3... dxe4 {[%clk
0:03:01.3]} 4. Nxe4 {[%clk 0:03:03.8]} 4... Bf5 {[%clk 0:03:02.4]} 5. Ng3 {[%clk
0:03:04.6]} 5... Bg6 {[%clk 0:03:03.9]} 6. h4 {[%clk 0:03:06.2]} 6... h6 {[%clk
0:03:05.5]} 7. Nf3 {[%clk 0:03:07.7]} 7... Nd7 {[%clk 0:03:05.9]} 8. h5 {[%clk
0:03:09.1]} 8... Bh7 {[%clk 0:03:06.8]} 9. Bd3 {[%clk 0:03:10.7]} 9... Bxd3
{[%clk 0:03:07.9]} 10. Qxd3 {[%clk 0:03:12.6]} 10... e6 {[%clk 0:03:08.8]} 11.
Bf4 {[%clk 0:03:14.1]} 11... Qa5+ {[%clk 0:03:08.3]} 12. Bd2 {[%clk 0:03:15.6]}
12... Bb4 {[%clk 0:03:09.6]} 13. c3 {[%clk 0:03:17.2]} 13... Be7 {[%clk
0:03:10.7]} 14. c4 {[%clk 0:03:18.7]} 14... Qc7 {[%clk 0:03:11.7]} 15. O-O-O
{[%clk 0:03:20.3]} 15... Ngf6 {[%clk 0:03:12.6]} 16. Qe2 {[%clk 0:03:21.8]}
16... b5 {[%clk 0:03:12.6]} 17. c5 {[%clk 0:03:22.4]} 17... O-O {[%clk 0:03:10]}
18. Ne1 {[%clk 0:03:23.1]} 18... e5 {[%clk 0:03:08.5]} 19. Nf5 {[%clk
0:03:20.6]} 19... Rfe8 {[%clk 0:03:08.3]} 20. Bxh6 {[%clk 0:03:01.7]} 20... Bf8
{[%clk 0:02:54.3]} 21. Bg5 {[%clk 0:02:52.8]} 21... exd4 {[%clk 0:02:54.5]} 22.
Qf3 {[%clk 0:02:52.5]} 22... Qe5 {[%clk 0:02:43.9]} 23. Qh3 {[%clk 0:02:14.1]}
23... Ne4 {[%clk 0:02:25.2]} 24. Bh4 {[%clk 0:02:04.9]} 24... Ndxc5 {[%clk
0:02:01.2]} 25. Nf3 {[%clk 0:01:58.1]} 25... Qf4+ {[%clk 0:02:01.7]} 26. Kb1
{[%clk 0:01:57.9]} 26... d3 {[%clk 0:01:55.1]} 27. Rhe1 {[%clk 0:01:33.2]} 27...
d2 {[%clk 0:01:48.2]} 28. Re3 {[%clk 0:01:30.7]} 28... Rad8 {[%clk 0:01:07.6]}
29. Bxd8 {[%clk 0:00:52]} 29... Rxd8 {[%clk 0:00:57.2]} 30. g3 {[%clk
0:00:42.1]} 30... Nxf2 {[%clk 0:00:49]} 31. gxf4 {[%clk 0:00:40.1]} 31... Nxh3
{[%clk 0:00:50]} 32. Rxd2 {[%clk 0:00:41.3]} 32... Rxd2 {[%clk 0:00:45.7]} 33.
Nxd2 {[%clk 0:00:43.2]} 33... Nxf4 {[%clk 0:00:47.3]} 34. Re8 {[%clk 0:00:43.9]}
34... Nce6 {[%clk 0:00:47.5]} 35. Ne7+ {[%clk 0:00:43.5]} 35... Kh7 {[%clk
0:00:48.1]} 36. Nxc6 {[%clk 0:00:45.4]} 36... Kh6 {[%clk 0:00:38.1]} 37. Nxa7
{[%clk 0:00:44.3]} 37... b4 {[%clk 0:00:37.7]} 38. Nc6 {[%clk 0:00:44.4]} 38...
Kxh5 {[%clk 0:00:29.3]} 39. Rb8 {[%clk 0:00:44.9]} 39... g5 {[%clk 0:00:21]} 40.
Nxb4 {[%clk 0:00:33.2]} 40... g4 {[%clk 0:00:21.8]} 41. Ne4 {[%clk 0:00:20.1]}
41... f5 {[%clk 0:00:21.6]} 42. Ng3+ {[%clk 0:00:20.5]} 42... Kg5 {[%clk
0:00:22.4]} 43. a4 {[%clk 0:00:18.4]} 43... Bd6 {[%clk 0:00:17.5]} 44. Rb5
{[%clk 0:00:18.1]} 44... Nd4 {[%clk 0:00:14.3]} 45. Ne4+ {[%clk 0:00:10.3]}
45... Kh4 {[%clk 0:00:10.5]} 46. Nxd6 {[%clk 0:00:09.4]} 46... Nxb5 {[%clk
0:00:10.9]} 47. axb5 {[%clk 0:00:10.2]} 47... Kg5 {[%clk 0:00:11.5]} 48. b6
{[%clk 0:00:10.7]} 48... g3 {[%clk 0:00:11]} 49. b7 {[%clk 0:00:11.9]} 49... g2
{[%clk 0:00:12.4]} 50. b8=Q {[%clk 0:00:13.4]} 50... g1=Q+ {[%clk 0:00:12.8]}
51. Ka2 {[%clk 0:00:14.7]} 51... Qd4 {[%clk 0:00:09.1]} 52. Qg8+ {[%clk
0:00:13.9]} 52... Ng6 {[%clk 0:00:09.8]} 53. Qd8+ {[%clk 0:00:13.4]} 53... Kg4
{[%clk 0:00:06.5]} 54. Kb3 {[%clk 0:00:12.1]} 54... Qd1+ {[%clk 0:00:06.1]} 55.
Kc3 {[%clk 0:00:09.9]} 55... Ne5 {[%clk 0:00:07.1]} 56. Qg8+ {[%clk 0:00:09.3]}
56... Kf3 {[%clk 0:00:07.3]} 57. Qd5+ {[%clk 0:00:08.8]} 57... Qxd5 {[%clk
0:00:06.4]} 58. Nxd5 {[%clk 0:00:10.7]} 58... f4 {[%clk 0:00:05.7]} 59. b4
{[%clk 0:00:11.6]} 59... Nd7 {[%clk 0:00:03.3]} 60. Kd4 {[%clk 0:00:10.8]} 60...
Kg3 {[%clk 0:00:02.9]} 61. Ne4+ {[%clk 0:00:11.1]} 61... Kg4 {[%clk 0:00:03.4]}
62. Nef6+ {[%clk 0:00:12.1]} 62... Nxf6 {[%clk 0:00:03.6]} 63. Nxf6+ {[%clk
0:00:14]} 63... Kf5 {[%clk 0:00:05.1]} 64. Ne4 {[%clk 0:00:14.9]} 64... Ke6
{[%clk 0:00:06]} 65. Nf2 {[%clk 0:00:16.2]} 65... Kd6 {[%clk 0:00:07.1]} 66. Kc4
{[%clk 0:00:17.6]} 66... Kc6 {[%clk 0:00:07.9]} 67. b5+ {[%clk 0:00:19.1]} 67...
Kb6 {[%clk 0:00:09.2]} 68. Kb4 {[%clk 0:00:20.6]} 68... f3 {[%clk 0:00:10.6]}
69. Kc4 {[%clk 0:00:21.6]} 69... Kc7 {[%clk 0:00:10.3]} 70. Kc5 {[%clk
0:00:23.1]} 70... Kb7 {[%clk 0:00:11.6]} 71. b6 {[%clk 0:00:24.7]} 71... Kb8
{[%clk 0:00:09.2]} 72. Kc6 {[%clk 0:00:26.1]} 72... Kc8 {[%clk 0:00:10.4]} 73.
b7+ {[%clk 0:00:27.6]} 73... Kb8 {[%clk 0:00:11.7]} 74. Ne4 {[%clk 0:00:29.2]}
74... Ka7 {[%clk 0:00:11.4]} 75. Kc7 {[%clk 0:00:29.4]} 1-0

[Event "*** Titled Tuesday 3|2 Blitz"]
[Site "Chess.com"]
[Date "2016.02.02"]
[Round "8"]
[White "Jahonas"]
[Black "tac49"]
[Result "0-1"]
[WhiteElo "2190"]
[BlackElo "2459"]
[TimeControl "180+2"]
[EndTime "18:39:54 PST"]
[Termination "tac49 won by resignation"]

1. e4 {[%clk 0:03:01.9]} 1... e5 {[%clk 0:02:58.8]} 2. Nf3 {[%clk 0:03:02.3]}
2... Nc6 {[%clk 0:02:59.5]} 3. Bb5 {[%clk 0:03:02.8]} 3... a6 {[%clk 0:02:57.3]}
4. Ba4 {[%clk 0:03:03.2]} 4... Nf6 {[%clk 0:02:57.3]} 5. O-O {[%clk 0:03:03.7]}
5... Be7 {[%clk 0:02:56.7]} 6. d3 {[%clk 0:03:03.7]} 6... d6 {[%clk 0:02:53]} 7.
c3 {[%clk 0:03:04.3]} 7... Bg4 {[%clk 0:02:53.3]} 8. h3 {[%clk 0:03:05.3]} 8...
Bh5 {[%clk 0:02:52.2]} 9. Be3 {[%clk 0:03:04.9]} 9... Nd7 {[%clk 0:02:51.8]} 10.
Nbd2 {[%clk 0:03:04.3]} 10... h6 {[%clk 0:02:47.6]} 11. Re1 {[%clk 0:02:57.7]}
11... Bg5 {[%clk 0:02:45.6]} 12. Nf1 {[%clk 0:02:57.2]} 12... Bxe3 {[%clk
0:02:17.2]} 13. Rxe3 {[%clk 0:02:55]} 13... Nc5 {[%clk 0:02:16.7]} 14. Bc2
{[%clk 0:02:54.2]} 14... Ne6 {[%clk 0:02:15.9]} 15. Ng3 {[%clk 0:02:54.9]} 15...
Bg6 {[%clk 0:02:13.7]} 16. d4 {[%clk 0:02:51.4]} 16... Nf4 {[%clk 0:02:10]} 17.
Qd2 {[%clk 0:02:46.2]} 17... O-O {[%clk 0:02:05.7]} 18. Rae1 {[%clk 0:02:41.7]}
18... f6 {[%clk 0:02:04.1]} 19. b4 {[%clk 0:02:38.8]} 19... Ne7 {[%clk
0:01:57.4]} 20. Nh4 {[%clk 0:02:37.3]} 20... Bh7 {[%clk 0:01:56.4]} 21. Nhf5
{[%clk 0:02:35.8]} 21... Kh8 {[%clk 0:01:54.9]} 22. Nxe7 {[%clk 0:02:33.1]}
22... Qxe7 {[%clk 0:01:55.1]} 23. Nf5 {[%clk 0:02:34]} 23... Qf7 {[%clk
0:01:45.9]} 24. Bb3 {[%clk 0:02:21.2]} 24... Qh5 {[%clk 0:01:43]} 25. Bc2 {[%clk
0:01:49]} 25... Rae8 {[%clk 0:01:39.9]} 26. Rg3 {[%clk 0:01:44.3]} 26... g5
{[%clk 0:01:05.1]} 27. Rge3 {[%clk 0:01:18.5]} 27... Bxf5 {[%clk 0:00:33.6]} 28.
exf5 {[%clk 0:01:15.9]} 28... Kg7 {[%clk 0:00:31]} 29. dxe5 {[%clk 0:01:13.3]}
29... Rxe5 {[%clk 0:00:29.5]} 30. Rxe5 {[%clk 0:01:01]} 30... fxe5 {[%clk
0:00:31.4]} 31. Re3 {[%clk 0:00:46.4]} 31... Rf6 {[%clk 0:00:25.8]} 32. a4
{[%clk 0:00:45.2]} 32... Qf7 {[%clk 0:00:24.3]} 33. Rg3 {[%clk 0:00:37.3]} 33...
Qd5 {[%clk 0:00:22.5]} 34. Qe3 {[%clk 0:00:33.3]} 34... Qa2 {[%clk 0:00:19.9]}
35. Be4 {[%clk 0:00:31.8]} 35... Ne2+ {[%clk 0:00:19.6]} 36. Kh2 {[%clk
0:00:31.8]} 36... Nxg3 {[%clk 0:00:21.5]} 37. fxg3 {[%clk 0:00:33]} 37... c6
{[%clk 0:00:20.9]} 38. a5 {[%clk 0:00:33.3]} 38... Qf7 {[%clk 0:00:18.7]} 39. g4
{[%clk 0:00:32.1]} 39... d5 {[%clk 0:00:18.4]} 40. Bf3 {[%clk 0:00:32.5]} 40...
Qe7 {[%clk 0:00:19.4]} 41. g3 {[%clk 0:00:32.8]} 41... Rd6 {[%clk 0:00:18.7]}
42. Bg2 {[%clk 0:00:31.3]} 42... Qf6 {[%clk 0:00:17.7]} 43. Qf2 {[%clk
0:00:31.4]} 43... e4 {[%clk 0:00:17.1]} 44. Qc5 {[%clk 0:00:30.8]} 44... Rd7
{[%clk 0:00:16.4]} 45. Kg1 {[%clk 0:00:31.8]} 45... Re7 {[%clk 0:00:17.2]} 46.
Kf2 {[%clk 0:00:32.6]} 46... e3+ {[%clk 0:00:17.7]} 47. Ke2 {[%clk 0:00:33.8]}
47... Qe5 {[%clk 0:00:18.2]} 48. Bf3 {[%clk 0:00:33.1]} 48... Kf6 {[%clk
0:00:16.4]} 49. Qd4 {[%clk 0:00:29.9]} 49... Qxd4 {[%clk 0:00:10.6]} 50. cxd4
{[%clk 0:00:31]} 50... Re8 {[%clk 0:00:11.5]} 51. Kd3 {[%clk 0:00:32]} 51... b6
{[%clk 0:00:11.6]} 52. axb6 {[%clk 0:00:32.2]} 52... Rb8 {[%clk 0:00:11.5]} 53.
Kc3 {[%clk 0:00:30.4]} 53... Rxb6 {[%clk 0:00:12.4]} 54. Be2 {[%clk 0:00:31.5]}
54... Ke7 {[%clk 0:00:11.4]} 55. Bd3 {[%clk 0:00:31.7]} 55... Kd6 {[%clk
0:00:12]} 56. Be2 {[%clk 0:00:32.9]} 56... Ke7 {[%clk 0:00:10.2]} 57. Bd3 {[%clk
0:00:33.9]} 57... Kf6 {[%clk 0:00:11]} 58. Be2 {[%clk 0:00:35]} 58... h5 {[%clk
0:00:11.8]} 59. gxh5 {[%clk 0:00:30.9]} 59... Kxf5 {[%clk 0:00:12]} 60. Bd3+
{[%clk 0:00:31.7]} 60... Kf6 {[%clk 0:00:12.7]} 61. Be2 {[%clk 0:00:31.5]} 61...
Rb8 {[%clk 0:00:08.9]} 62. Bxa6 {[%clk 0:00:29.3]} 62... Ra8 {[%clk 0:00:09.6]}
63. Be2 {[%clk 0:00:26.1]} 63... Ra3+ {[%clk 0:00:09.6]} 64. Kc2 {[%clk
0:00:27.4]} 64... Ra2+ {[%clk 0:00:08.5]} 65. Kd3 {[%clk 0:00:28.4]} 65... Rb2
{[%clk 0:00:09.4]} 66. Kxe3 {[%clk 0:00:29.3]} 66... Rxb4 {[%clk 0:00:10.6]} 67.
Bd3 {[%clk 0:00:30.6]} 67... Rb2 {[%clk 0:00:10.5]} 68. h6 {[%clk 0:00:30.9]}
68... Rh2 {[%clk 0:00:10.9]} 69. Kf3 {[%clk 0:00:31]} 69... Rxh3 {[%clk
0:00:09.9]} 70. h7 {[%clk 0:00:32.1]} 70... Rh1 {[%clk 0:00:09.1]} 71. Kg4
{[%clk 0:00:32.3]} 71... Kg7 {[%clk 0:00:09.3]} 72. Kxg5 {[%clk 0:00:32.8]}
72... Rd1 {[%clk 0:00:10.3]} 73. Bf5 {[%clk 0:00:32.7]} 73... Rxd4 {[%clk
0:00:12.2]} 74. g4 {[%clk 0:00:34.2]} 74... c5 {[%clk 0:00:13.2]} 75. Be6 {[%clk
0:00:32.4]} 75... c4 {[%clk 0:00:13.7]} 76. Kf5 {[%clk 0:00:32.7]} 76... c3
{[%clk 0:00:14.4]} 77. Ke5 {[%clk 0:00:34.1]} 77... Rd2 {[%clk 0:00:14.3]} 78.
Bf5 {[%clk 0:00:34.1]} 78... c2 {[%clk 0:00:14.3]} 0-1

[Event "*** Titled Tuesday 3|2 Blitz"]
[Site "Chess.com"]
[Date "2016.02.02"]
[Round "9"]
[White "LADIESGET2KNOWME"]
[Black "DaPazz"]
[Result "1-0"]
[WhiteElo "2306"]
[BlackElo "2000"]
[TimeControl "180+2"]
[EndTime "18:45:15 PST"]
[Termination "LADIESGET2KNOWME won by checkmate"]

1. d4 {[%clk 0:03:01.9]} 1... f5 {[%clk 0:02:59.6]} 2. Nc3 {[%clk 0:03:01.6]}
2... d5 {[%clk 0:02:58.9]} 3. e4 {[%clk 0:03:02.2]} 3... dxe4 {[%clk 0:02:58.3]}
4. f3 {[%clk 0:03:02.5]} 4... exf3 {[%clk 0:02:58.6]} 5. Nxf3 {[%clk 0:03:04.4]}
5... Nf6 {[%clk 0:02:59.9]} 6. Bc4 {[%clk 0:03:04.8]} 6... e6 {[%clk 0:02:59.7]}
7. Bg5 {[%clk 0:03:02]} 7... Bb4 {[%clk 0:03:00]} 8. Qe2 {[%clk 0:03:02.5]} 8...
Bxc3+ {[%clk 0:02:58.2]} 9. bxc3 {[%clk 0:03:03.3]} 9... O-O {[%clk 0:02:59.7]}
10. O-O {[%clk 0:03:00.7]} 10... Re8 {[%clk 0:02:58.1]} 11. Ne5 {[%clk
0:03:00.6]} 11... Kf8 {[%clk 0:02:25.7]} 12. g4 {[%clk 0:02:55.5]} 12... h6
{[%clk 0:02:08]} 13. Bxf6 {[%clk 0:02:36.5]} 13... Qxf6 {[%clk 0:02:07]} 14.
gxf5 {[%clk 0:02:31.5]} 14... exf5 {[%clk 0:02:06.8]} 15. Rae1 {[%clk
0:02:30.5]} 15... Bd7 {[%clk 0:01:57]} 16. Qh5 {[%clk 0:02:22.4]} 16... Qg5+
{[%clk 0:01:42.5]} 17. Qxg5 {[%clk 0:02:23]} 17... hxg5 {[%clk 0:01:43.7]} 18.
Ng6# {[%clk 0:02:24.1]} 1-0

[Event "*** Titled Tuesday 3|2 Blitz"]
[Site "Chess.com"]
[Date "2016.02.02"]
[Round "9"]
[White "Hikaru"]
[Black "SenseiJulio"]
[Result "0-1"]
[WhiteElo "2816"]
[BlackElo "2593"]
[TimeControl "180+2"]
[EndTime "18:46:22 PST"]
[Termination "SenseiJulio won by resignation"]

1. g3 {[%clk 0:03:01.9]} 1... Nf6 {[%clk 0:02:55.4]} 2. Bg2 {[%clk 0:03:02.1]}
2... e6 {[%clk 0:02:53.3]} 3. Nf3 {[%clk 0:03:02.1]} 3... d5 {[%clk 0:02:54.8]}
4. d3 {[%clk 0:03:03.3]} 4... c5 {[%clk 0:02:53.1]} 5. O-O {[%clk 0:03:04]} 5...
Be7 {[%clk 0:02:51.7]} 6. Nbd2 {[%clk 0:03:05.9]} 6... Nc6 {[%clk 0:02:51.9]} 7.
e4 {[%clk 0:03:07.8]} 7... O-O {[%clk 0:02:52.9]} 8. Re1 {[%clk 0:03:08]} 8...
b5 {[%clk 0:02:48.8]} 9. e5 {[%clk 0:03:09.4]} 9... Nd7 {[%clk 0:02:48.2]} 10.
Nf1 {[%clk 0:03:11]} 10... a5 {[%clk 0:02:44.8]} 11. h4 {[%clk 0:03:12]} 11...
b4 {[%clk 0:02:45.6]} 12. h5 {[%clk 0:03:13.3]} 12... a4 {[%clk 0:02:44.8]} 13.
h6 {[%clk 0:03:14.5]} 13... g6 {[%clk 0:02:45.4]} 14. a3 {[%clk 0:03:15.9]}
14... bxa3 {[%clk 0:02:46.2]} 15. bxa3 {[%clk 0:03:17.8]} 15... Ba6 {[%clk
0:02:45.4]} 16. N1h2 {[%clk 0:03:18.4]} 16... Rb8 {[%clk 0:02:44.9]} 17. Bf4
{[%clk 0:03:19.5]} 17... Rb2 {[%clk 0:02:33.8]} 18. Qc1 {[%clk 0:03:19.2]} 18...
Qb6 {[%clk 0:02:32.8]} 19. Ng4 {[%clk 0:03:11.2]} 19... Rb8 {[%clk 0:02:32]} 20.
Bg5 {[%clk 0:03:09.9]} 20... Bf8 {[%clk 0:02:27.8]} 21. Bf6 {[%clk 0:02:40.3]}
21... Nd4 {[%clk 0:02:22.6]} 22. Nxd4 {[%clk 0:02:36.5]} 22... cxd4 {[%clk
0:02:24.5]} 23. Bh8 {[%clk 0:02:38.4]} 23... Kxh8 {[%clk 0:02:16.6]} 24. Qf4
{[%clk 0:02:15.2]} 24... Kg8 {[%clk 0:02:13.2]} 25. Nh2 {[%clk 0:02:14.9]} 25...
Rxc2 {[%clk 0:02:01.9]} 26. Nf3 {[%clk 0:02:14.5]} 26... Nc5 {[%clk 0:01:42]}
27. Rab1 {[%clk 0:02:15.3]} 27... Qxb1 {[%clk 0:01:27.1]} 28. Rxb1 {[%clk
0:02:15.9]} 28... Rxb1+ {[%clk 0:01:28.7]} 29. Kh2 {[%clk 0:02:17.8]} 29... Rxf2
{[%clk 0:01:25.6]} 30. Ng5 {[%clk 0:02:19.2]} 30... Rxf4 {[%clk 0:01:25.9]} 0-1

[Event "*** Titled Tuesday 3|2 Blitz"]
[Site "Chess.com"]
[Date "2016.02.02"]
[Round "9"]
[White "Kanthecarowin"]
[Black "pedromartinez91"]
[Result "1-0"]
[WhiteElo "2166"]
[BlackElo "1988"]
[TimeControl "180+2"]
[EndTime "18:46:38 PST"]
[Termination "Kanthecarowin won by checkmate"]

1. d4 {[%clk 0:03:01.7]} 1... d5 {[%clk 0:02:54]} 2. c4 {[%clk 0:03:02.2]} 2...
e6 {[%clk 0:02:54.7]} 3. Nf3 {[%clk 0:03:02.3]} 3... Nf6 {[%clk 0:02:56]} 4. Bg5
{[%clk 0:03:02.6]} 4... Be7 {[%clk 0:02:57.5]} 5. Nc3 {[%clk 0:03:02.9]} 5...
O-O {[%clk 0:02:58.2]} 6. cxd5 {[%clk 0:03:01.9]} 6... exd5 {[%clk 0:02:58.5]}
7. e3 {[%clk 0:03:02.9]} 7... c6 {[%clk 0:02:59.6]} 8. Qc2 {[%clk 0:03:02.6]}
8... Nbd7 {[%clk 0:03:00.8]} 9. Bd3 {[%clk 0:03:03.2]} 9... Re8 {[%clk
0:03:01.9]} 10. h3 {[%clk 0:03:04.2]} 10... Ne4 {[%clk 0:03:02.5]} 11. Bxe7
{[%clk 0:03:02.9]} 11... Qxe7 {[%clk 0:03:03]} 12. O-O {[%clk 0:03:04.5]} 12...
f5 {[%clk 0:03:02.9]} 13. Nd2 {[%clk 0:03:02.5]} 13... Ndf6 {[%clk 0:03:03.7]}
14. Rae1 {[%clk 0:03:03.2]} 14... Kh8 {[%clk 0:02:58.7]} 15. f3 {[%clk 0:03:04]}
15... Nd6 {[%clk 0:02:49.8]} 16. e4 {[%clk 0:02:57.8]} 16... fxe4 {[%clk
0:02:49.9]} 17. fxe4 {[%clk 0:02:58.8]} 17... dxe4 {[%clk 0:02:50.6]} 18. Ndxe4
{[%clk 0:02:59.6]} 18... Ndxe4 {[%clk 0:02:50.6]} 19. Nxe4 {[%clk 0:03:00.5]}
19... Nxe4 {[%clk 0:02:46.2]} 20. Rxe4 {[%clk 0:02:54.4]} 20... Qd8 {[%clk
0:02:41.6]} 21. Qe2 {[%clk 0:02:48.8]} 21... Bd7 {[%clk 0:02:35.5]} 22. Qh5
{[%clk 0:02:48.6]} 22... g6 {[%clk 0:02:27.1]} 23. Qh6 {[%clk 0:02:39.6]} 23...
Be6 {[%clk 0:02:09.6]} 24. Rh4 {[%clk 0:02:36.2]} 24... Qd7 {[%clk 0:01:58.9]}
25. Bxg6 {[%clk 0:02:34.4]} 25... Bg8 {[%clk 0:01:59.7]} 26. Rf7 {[%clk
0:02:09.7]} 26... Re7 {[%clk 0:01:50.3]} 27. Qg7# {[%clk 0:01:41]} 1-0

[Event "*** Titled Tuesday 3|2 Blitz"]
[Site "Chess.com"]
[Date "2016.02.02"]
[Round "9"]
[White "ruifeng"]
[Black "tac49"]
[Result "1-0"]
[WhiteElo "2334"]
[BlackElo "2448"]
[TimeControl "180+2"]
[EndTime "18:47:48 PST"]
[Termination "ruifeng won on time"]

1. e4 {[%clk 0:03:01.9]} 1... e5 {[%clk 0:02:59.2]} 2. Nf3 {[%clk 0:03:00.4]}
2... Nc6 {[%clk 0:02:58.9]} 3. Bb5 {[%clk 0:03:01.5]} 3... a6 {[%clk 0:02:58.5]}
4. Ba4 {[%clk 0:03:02.4]} 4... Nf6 {[%clk 0:02:58.1]} 5. O-O {[%clk 0:03:02.7]}
5... Be7 {[%clk 0:02:58.1]} 6. Nc3 {[%clk 0:03:03.7]} 6... d6 {[%clk 0:02:56.1]}
7. a3 {[%clk 0:03:01.3]} 7... Bg4 {[%clk 0:02:54.6]} 8. h3 {[%clk 0:02:53.3]}
8... Bxf3 {[%clk 0:02:55.1]} 9. Qxf3 {[%clk 0:02:54.3]} 9... b5 {[%clk
0:02:54.6]} 10. Bb3 {[%clk 0:02:55.5]} 10... Nd4 {[%clk 0:02:54.3]} 11. Qd1
{[%clk 0:02:56.5]} 11... Nxb3 {[%clk 0:02:53.2]} 12. cxb3 {[%clk 0:02:57.7]}
12... O-O {[%clk 0:02:54]} 13. d4 {[%clk 0:02:58.2]} 13... c5 {[%clk 0:02:31.8]}
14. dxe5 {[%clk 0:02:50.4]} 14... dxe5 {[%clk 0:02:33.7]} 15. Bg5 {[%clk
0:02:51.3]} 15... Qd4 {[%clk 0:02:18.9]} 16. Bxf6 {[%clk 0:02:51.2]} 16... Bxf6
{[%clk 0:02:19.6]} 17. Qe2 {[%clk 0:02:50.5]} 17... Qd6 {[%clk 0:01:45.6]} 18.
Nd5 {[%clk 0:02:50.3]} 18... Rfd8 {[%clk 0:01:43]} 19. Rfd1 {[%clk 0:02:50.5]}
19... Rac8 {[%clk 0:01:29.5]} 20. Rac1 {[%clk 0:02:49.7]} 20... Qe6 {[%clk
0:01:28.3]} 21. Rc3 {[%clk 0:02:48.7]} 21... g6 {[%clk 0:01:22.9]} 22. Rcd3
{[%clk 0:02:28.5]} 22... h5 {[%clk 0:01:15]} 23. Qd2 {[%clk 0:02:25.5]} 23...
Bg7 {[%clk 0:01:08.2]} 24. Ne7+ {[%clk 0:02:24.1]} 24... Kh7 {[%clk 0:00:59.1]}
25. Rxd8 {[%clk 0:02:24]} 25... Qxe7 {[%clk 0:00:58.1]} 26. Rxc8 {[%clk
0:02:24.1]} 26... Qg5 {[%clk 0:00:59]} 27. Qxg5 {[%clk 0:02:24.1]} 27... c4
{[%clk 0:00:59]} 28. Rd7 {[%clk 0:02:22.2]} 1-0

[Event "*** Titled Tuesday 3|2 Blitz"]
[Site "Chess.com"]
[Date "2016.02.02"]
[Round "9"]
[White "Quiet_Desperation"]
[Black "ItalianMachine"]
[Result "0-1"]
[WhiteElo "2118"]
[BlackElo "2236"]
[TimeControl "180+2"]
[EndTime "18:48:25 PST"]
[Termination "ItalianMachine won by resignation"]

1. e4 {[%clk 0:03:01.9]} 1... e5 {[%clk 0:02:59.2]} 2. Nf3 {[%clk 0:03:03.4]}
2... Nc6 {[%clk 0:03:00.1]} 3. Bb5 {[%clk 0:03:04.5]} 3... a6 {[%clk 0:03:01.2]}
4. Ba4 {[%clk 0:03:05.2]} 4... Nf6 {[%clk 0:03:02.7]} 5. d3 {[%clk 0:03:03.7]}
5... b5 {[%clk 0:03:02.8]} 6. Bb3 {[%clk 0:03:04.7]} 6... Be7 {[%clk 0:03:04.4]}
7. c3 {[%clk 0:03:06.2]} 7... O-O {[%clk 0:03:04.3]} 8. O-O {[%clk 0:03:07.1]}
8... d6 {[%clk 0:03:05.7]} 9. h3 {[%clk 0:03:07.6]} 9... Na5 {[%clk 0:03:05.4]}
10. Bc2 {[%clk 0:03:08.5]} 10... c5 {[%clk 0:03:06.6]} 11. Re1 {[%clk
0:03:09.7]} 11... Qc7 {[%clk 0:03:06.5]} 12. Nbd2 {[%clk 0:03:11.3]} 12... Bd7
{[%clk 0:03:04.9]} 13. Nf1 {[%clk 0:03:12.9]} 13... Rab8 {[%clk 0:03:04.5]} 14.
Ng3 {[%clk 0:03:14.1]} 14... g6 {[%clk 0:03:06]} 15. Bh6 {[%clk 0:03:14.3]}
15... Rfe8 {[%clk 0:03:05.3]} 16. Qd2 {[%clk 0:03:15]} 16... b4 {[%clk
0:03:05.4]} 17. Nh4 {[%clk 0:03:13.1]} 17... bxc3 {[%clk 0:02:53.3]} 18. bxc3
{[%clk 0:03:13.4]} 18... Rb2 {[%clk 0:02:54.5]} 19. Nhf5 {[%clk 0:03:07.6]}
19... Rxc2 {[%clk 0:02:43.4]} 20. Nxe7+ {[%clk 0:03:08.2]} 20... Rxe7 {[%clk
0:02:44.4]} 21. Qxc2 {[%clk 0:03:09.8]} 21... Ne8 {[%clk 0:02:40]} 22. f4 {[%clk
0:03:02]} 22... Nc6 {[%clk 0:02:34]} 23. f5 {[%clk 0:03:02.5]} 23... f6 {[%clk
0:02:34.2]} 24. h4 {[%clk 0:02:55.7]} 24... c4 {[%clk 0:02:31.3]} 25. Rad1
{[%clk 0:02:42.3]} 25... cxd3 {[%clk 0:02:16]} 26. Qxd3 {[%clk 0:02:38.5]} 26...
Na5 {[%clk 0:02:12.8]} 27. Qd5+ {[%clk 0:02:18.8]} 27... Kh8 {[%clk 0:02:09.1]}
28. Bf8 {[%clk 0:02:19.6]} 28... Bc6 {[%clk 0:02:04.9]} 29. Qd2 {[%clk
0:02:05.2]} 29... Rd7 {[%clk 0:02:05.1]} 30. Qh6 {[%clk 0:02:00.8]} 30... Kg8
{[%clk 0:02:01.9]} 31. fxg6 {[%clk 0:01:51.2]} 31... hxg6 {[%clk 0:02:03.3]} 32.
h5 {[%clk 0:01:37.2]} 32... Rh7 {[%clk 0:01:57.7]} 33. Qxg6+ {[%clk 0:01:36.5]}
33... Kxf8 {[%clk 0:01:58.8]} 34. Nf5 {[%clk 0:01:33.1]} 34... Nc4 {[%clk
0:01:51.7]} 35. Rd3 {[%clk 0:01:25.6]} 35... Qf7 {[%clk 0:01:47.4]} 36. Rg3
{[%clk 0:01:08.6]} 36... Rxh5 {[%clk 0:01:42.5]} 37. Qxf7+ {[%clk 0:01:09.8]}
37... Kxf7 {[%clk 0:01:42.8]} 38. Rh3 {[%clk 0:01:00.4]} 38... Rxh3 {[%clk
0:01:33.2]} 39. gxh3 {[%clk 0:01:01.6]} 39... Nd2 {[%clk 0:01:34.5]} 40. Ng3
{[%clk 0:00:54.4]} 40... Nf3+ {[%clk 0:01:34.1]} 0-1